Workbook

Sheet لوحة التحكم
A1: لوحة ملخص التقرير المالي السنوي
A2: الشركة | B2: =المدخلات!B2 -> اسم الشركة | C2: السنة | D2: =المدخلات!B3 -> 2026 | E2: العملة | F2: =المدخلات!B5 -> SAR
A3: المؤشر | B3: السنة الحالية | C3: السنة السابقة | D3: الانحراف | E3: نسبة الانحراف | F3: التقييم
A4: إجمالي الإيرادات | B4: ='قائمة الدخل'!B3 -> 4652000 | C4: ='قائمة الدخل'!C3 -> 4195300 | D4: =B4-C4 -> 456700 | E4: =IFERROR(D4/C4,0) -> 0.1088599147 | F4: =IF(ABS(E4)<المدخلات!$B$8,"مستقر",IF(D4>0,"تحسن","تراجع")) -> تحسن
A5: إجمالي المصروفات | B5: ='قائمة الدخل'!B4+'قائمة الدخل'!B8+'قائمة الدخل'!B13+'قائمة الدخل'!B15 -> 4474255 | C5: ='قائمة الدخل'!C4+'قائمة الدخل'!C8+'قائمة الدخل'!C13+'قائمة الدخل'!C15 -> 4099534.75 | D5: 374720.25 | E5: 0.09140555523 | F5: =IF(ABS(E5)<المدخلات!$B$8,"مستقر",IF(D5<0,"تحسن","تراجع")) -> تراجع
A6: مجمل الربح | B6: ='قائمة الدخل'!B5 -> 2305200 | C6: ='قائمة الدخل'!C5 -> 2062210 | D6: 242990 | E6: 0.1178299009 | F6: =IF(ABS(E6)<المدخلات!$B$8,"مستقر",IF(D6>0,"تحسن","تراجع")) -> تحسن
A7: صافي الربح | B7: ='قائمة الدخل'!B16 -> 177745 | C7: ='قائمة الدخل'!C16 -> 95765.25 | D7: 81979.75 | E7: 0.8560490366 | F7: =IF(ABS(E7)<المدخلات!$B$8,"مستقر",IF(D7>0,"تحسن","تراجع")) -> تحسن
A8: هامش صافي الربح | B8: ='قائمة الدخل'!B17 -> 0.03820829751 | C8: ='قائمة الدخل'!C17 -> 0.02282679427 | D8: 0.01538150324 | E8: 0.6738354521 | F8: =IF(ABS(E8)<المدخلات!$B$8,"مستقر",IF(D8>0,"تحسن","تراجع")) -> تحسن
A9: التدفق النقدي التشغيلي | B9: ='التدفقات النقدية'!B11 -> 231745 | C9: ='التدفقات النقدية'!C11 -> 163245.25 | D9: 68499.75 | E9: 0.4196125155 | F9: =IF(ABS(E9)<المدخلات!$B$8,"مستقر",IF(D9>0,"تحسن","تراجع")) -> تحسن
A10: نسبة التداول | B10: ='نسب السيولة'!B3 -> 2.494992308 | C10: ='نسب السيولة'!C3 -> 2.771428571 | D10: -0.2764362637 | E10: -0.09974504362 | F10: =IF(ABS(E10)<المدخلات!$B$8,"مستقر",IF(D10>0,"تحسن","تراجع")) -> تراجع
A11: الدين إلى حقوق الملكية | B11: ='نسب المديونية'!B4 -> 0.9117627759 | C11: ='نسب المديونية'!C4 -> 0.8937007874 | D11: 0.0180619885 | E11: 0.02021033075 | F11: =IF(ABS(E11)<المدخلات!$B$8,"مستقر",IF(D11<0,"تحسن","تراجع")) -> مستقر
A14: الشهر | B14: الإيرادات | C14: المصروفات والتكلفة | D14: صافي الربح
A15: يناير | B15: ='ملخص الإيرادات'!B7 -> 320000 | C15: ='ملخص الإيرادات'!B12+'ملخص الإيرادات'!B23+'ملخص الإيرادات'!B27+'ملخص الإيرادات'!B28 -> 325000 | D15: ='ملخص الإيرادات'!B29 -> -5000
A16: فبراير | B16: ='ملخص الإيرادات'!C7 -> 334000 | C16: ='ملخص الإيرادات'!C12+'ملخص الإيرادات'!C23+'ملخص الإيرادات'!C27+'ملخص الإيرادات'!C28 -> 334500 | D16: ='ملخص الإيرادات'!C29 -> -500
A17: مارس | B17: ='ملخص الإيرادات'!D7 -> 328000 | C17: ='ملخص الإيرادات'!D12+'ملخص الإيرادات'!D23+'ملخص الإيرادات'!D27+'ملخص الإيرادات'!D28 -> 331500 | D17: ='ملخص الإيرادات'!D29 -> -3500
A18: أبريل | B18: ='ملخص الإيرادات'!E7 -> 357000 | C18: ='ملخص الإيرادات'!E12+'ملخص الإيرادات'!E23+'ملخص الإيرادات'!E27+'ملخص الإيرادات'!E28 -> 350200 | D18: ='ملخص الإيرادات'!E29 -> 6800
A19: مايو | B19: ='ملخص الإيرادات'!F7 -> 380000 | C19: ='ملخص الإيرادات'!F12+'ملخص الإيرادات'!F23+'ملخص الإيرادات'!F27+'ملخص الإيرادات'!F28 -> 365975 | D19: ='ملخص الإيرادات'!F29 -> 14025
A20: يونيو | B20: ='ملخص الإيرادات'!G7 -> 370000 | C20: ='ملخص الإيرادات'!G12+'ملخص الإيرادات'!G23+'ملخص الإيرادات'!G27+'ملخص الإيرادات'!G28 -> 361925 | D20: ='ملخص الإيرادات'!G29 -> 8075
A21: يوليو | B21: ='ملخص الإيرادات'!H7 -> 394000 | C21: ='ملخص الإيرادات'!H12+'ملخص الإيرادات'!H23+'ملخص الإيرادات'!H27+'ملخص الإيرادات'!H28 -> 377425 | D21: ='ملخص الإيرادات'!H29 -> 16575
A22: أغسطس | B22: ='ملخص الإيرادات'!I7 -> 407000 | C22: ='ملخص الإيرادات'!I12+'ملخص الإيرادات'!I23+'ملخص الإيرادات'!I27+'ملخص الإيرادات'!I28 -> 386005 | D22: ='ملخص الإيرادات'!I29 -> 20995
A23: سبتمبر | B23: ='ملخص الإيرادات'!J7 -> 401000 | C23: ='ملخص الإيرادات'!J12+'ملخص الإيرادات'!J23+'ملخص الإيرادات'!J27+'ملخص الإيرادات'!J28 -> 383575 | D23: ='ملخص الإيرادات'!J29 -> 17425
A24: أكتوبر | B24: ='ملخص الإيرادات'!K7 -> 430000 | C24: ='ملخص الإيرادات'!K12+'ملخص الإيرادات'!K23+'ملخص الإيرادات'!K27+'ملخص الإيرادات'!K28 -> 401950 | D24: ='ملخص الإيرادات'!K29 -> 28050
A25: نوفمبر | B25: ='ملخص الإيرادات'!L7 -> 453000 | C25: ='ملخص الإيرادات'!L12+'ملخص الإيرادات'!L23+'ملخص الإيرادات'!L27+'ملخص الإيرادات'!L28 -> 419850 | D25: ='ملخص الإيرادات'!L29 -> 33150
A26: ديسمبر | B26: ='ملخص الإيرادات'!M7 -> 478000 | C26: ='ملخص الإيرادات'!M12+'ملخص الإيرادات'!M23+'ملخص الإيرادات'!M27+'ملخص الإيرادات'!M28 -> 436350 | D26: ='ملخص الإيرادات'!M29 -> 41650

Sheet تعليمات
A1: دليل استخدام نموذج التقرير المالي السنوي
A2: الغرض من النموذج | B2: تجهيز تقرير مالي سنوي متكامل يشمل ملخص الإيرادات والمصروفات، المقارنة مع السنة السابقة، تحليل الانحرافات، القوائم المالية، والنسب المالية الرئيسية.
A3: 1 | B3: ابدأ من تبويب «المدخلات» لإدخال اسم الشركة، السنة، العملة، ومعدل الزكاة/الضريبة.
A4: 2 | B4: حدّث الأرقام الشهرية في تبويب «ملخص الإيرادات» داخل الخلايا الصفراء. الخلايا ذات المعادلات ستحسب الإجماليات والانحرافات تلقائيًا.
A5: 3 | B5: حدّث أرصدة قائمة المركز المالي في الخلايا الصفراء. النقدية وحقوق الملكية مرتبطة تلقائيًا بالتدفقات النقدية وقائمة التغيرات في حقوق الملكية.
A6: 4 | B6: راجع تبويب «مقارنة وانحرافات» لاختيار سبب الانحراف والإجراء المقترح من القوائم المنسدلة أو كتابة تعليقك.
A7: 5 | B7: استخدم تبويبات النسب المالية لتحليل الربحية والسيولة والمديونية والكفاءة التشغيلية.
A8: 6 | B8: راجع «فرق الميزانية» في قائمة المركز المالي و«فرق التسوية» في التدفقات النقدية. يجب أن تكون النتيجة صفرًا أو قريبة جدًا من الصفر.
A9: دليل الألوان | B9: الخلايا الصفراء ذات الخط الأزرق = مدخلات قابلة للتعديل. الخلايا الخضراء/المظللة = إجماليات ومعادلات رئيسية.
A10: ملاحظة | B10: القيم الموجودة في النموذج تجريبية لتوضيح طريقة العمل، وليست بيانات مالية فعلية.

Sheet المدخلات
A1: مدخلات وإعدادات التقرير المالي السنوي
A2: اسم الشركة | B2: اسم الشركة
A3: السنة الحالية | B3: 2026
A4: السنة السابقة | B4: =B3-1 -> 2025
A5: العملة | B5: SAR
A6: معدل الزكاة/الضريبة | B6: 0.15
A7: عدد أيام السنة | B7: 365
A8: حد الانحراف المهم | B8: 0.05
A9: تاريخ إعداد النموذج | B9: 2026-07-08
A10: ملاحظات عامة | B10: استبدل القيم التجريبية ببيانات شركتك الفعلية
A11: مسؤول التقرير

Sheet ملخص الإيرادات
A1: ملخص الإيرادات والمصروفات السنوي
A2: البند | B2: يناير | C2: فبراير | D2: مارس | E2: أبريل | F2: مايو | G2: يونيو | H2: يوليو | I2: أغسطس | J2: سبتمبر | K2: أكتوبر | L2: نوفمبر | M2: ديسمبر | N2: إجمالي السنة | O2: السنة السابقة | P2: الانحراف | Q2: نسبة الانحراف | R2: ملاحظات / أسباب
A3: الإيرادات
A4: مبيعات المنتجات | B4: 250000 | C4: 260000 | D4: 255000 | E4: 280000 | F4: 300000 | G4: 290000 | H4: 310000 | I4: 320000 | J4: 315000 | K4: 340000 | L4: 360000 | M4: 380000 | N4: =SUM(B4:M4) -> 3660000 | O4: 3294000 | P4: =N4-O4 -> 366000 | Q4: =IFERROR(P4/O4,0) -> 0.1111111111
A5: إيرادات الخدمات | B5: 60000 | C5: 62000 | D5: 62000 | E5: 65000 | F5: 67000 | G5: 68000 | H5: 70000 | I5: 72000 | J5: 72000 | K5: 75000 | L5: 77000 | M5: 80000 | N5: 830000 | O5: 763600 | P5: 66400 | Q5: 0.08695652174
A6: إيرادات أخرى | B6: 10000 | C6: 12000 | D6: 11000 | E6: 12000 | F6: 13000 | G6: 12000 | H6: 14000 | I6: 15000 | J6: 14000 | K6: 15000 | L6: 16000 | M6: 18000 | N6: 162000 | O6: 137700 | P6: 24300 | Q6: 0.1764705882
A7: إجمالي الإيرادات | B7: =SUM(B4:B6) -> 320000 | C7: 334000 | D7: 328000 | E7: 357000 | F7: 380000 | G7: 370000 | H7: 394000 | I7: 407000 | J7: 401000 | K7: 430000 | L7: 453000 | M7: 478000 | N7: 4652000 | O7: =SUM(O4:O6) -> 4195300 | P7: 456700 | Q7: 0.1088599147
A9: تكلفة الإيرادات
A10: تكلفة البضاعة المباعة | B10: 145000 | C10: 150000 | D10: 148000 | E10: 160000 | F10: 170000 | G10: 168000 | H10: 178000 | I10: 183000 | J10: 181000 | K10: 193000 | L10: 205000 | M10: 216000 | N10: =SUM(B10:M10) -> 2097000 | O10: 1908270 | P10: =N10-O10 -> 188730 | Q10: =IFERROR(P10/O10,0) -> 0.0989010989
A11: تكلفة تقديم الخدمات | B11: 18000 | C11: 19000 | D11: 18500 | E11: 19500 | F11: 20000 | G11: 20500 | H11: 21000 | I11: 21800 | J11: 22000 | K11: 22500 | L11: 23000 | M11: 24000 | N11: 249800 | O11: 224820 | P11: 24980 | Q11: 0.1111111111
A12: إجمالي تكلفة الإيرادات | B12: =SUM(B10:B11) -> 163000 | C12: 169000 | D12: 166500 | E12: 179500 | F12: 190000 | G12: 188500 | H12: 199000 | I12: 204800 | J12: 203000 | K12: 215500 | L12: 228000 | M12: 240000 | N12: 2346800 | O12: =SUM(O10:O11) -> 2133090 | P12: 213710 | Q12: 0.1001879902
A13: مجمل الربح | B13: =B7-B12 -> 157000 | C13: 165000 | D13: 161500 | E13: 177500 | F13: 190000 | G13: 181500 | H13: 195000 | I13: 202200 | J13: 198000 | K13: 214500 | L13: 225000 | M13: 238000 | N13: 2305200 | O13: =O7-O12 -> 2062210 | P13: 242990 | Q13: 0.1178299009
A15: المصروفات التشغيلية
A16: الرواتب والأجور | B16: 72000 | C16: 72000 | D16: 72000 | E16: 72000 | F16: 72000 | G16: 72000 | H16: 72000 | I16: 72000 | J16: 72000 | K16: 72000 | L16: 72000 | M16: 72000 | N16: =SUM(B16:M16) -> 864000 | O16: 812160 | P16: =N16-O16 -> 51840 | Q16: =IFERROR(P16/O16,0) -> 0.06382978723
A17: الإيجارات | B17: 26000 | C17: 26000 | D17: 26000 | E17: 26000 | F17: 26000 | G17: 26000 | H17: 26000 | I17: 26000 | J17: 26000 | K17: 26000 | L17: 26000 | M17: 26000 | N17: 312000 | O17: 299520 | P17: 12480 | Q17: 0.04166666667
A18: التسويق والمبيعات | B18: 18000 | C18: 20000 | D18: 19000 | E18: 22000 | F18: 24000 | G18: 23000 | H18: 25000 | I18: 26000 | J18: 25000 | K18: 28000 | L18: 30000 | M18: 32000 | N18: 292000 | O18: 256960 | P18: 35040 | Q18: 0.1363636364
A19: مصاريف إدارية وعمومية | B19: 14000 | C19: 14000 | D19: 15000 | E19: 15000 | F19: 16000 | G19: 16000 | H19: 16500 | I19: 16500 | J19: 17000 | K19: 17000 | L19: 18000 | M19: 18000 | N19: 193000 | O19: 183350 | P19: 9650 | Q19: 0.05263157895
A20: الصيانة والخدمات | B20: 7000 | C20: 8000 | D20: 7500 | E20: 8500 | F20: 9000 | G20: 8500 | H20: 9000 | I20: 9500 | J20: 9500 | K20: 10000 | L20: 10500 | M20: 11000 | N20: 108000 | O20: 97200 | P20: 10800 | Q20: 0.1111111111
A21: الإهلاك والإطفاء | B21: 12000 | C21: 12000 | D21: 12000 | E21: 12000 | F21: 12000 | G21: 12000 | H21: 12000 | I21: 12000 | J21: 12000 | K21: 12000 | L21: 12000 | M21: 12000 | N21: 144000 | O21: 132480 | P21: 11520 | Q21: 0.08695652174
A22: مصروفات تشغيلية أخرى | B22: 6000 | C22: 6500 | D22: 6500 | E22: 7000 | F22: 7500 | G22: 7000 | H22: 7500 | I22: 8000 | J22: 8000 | K22: 8500 | L22: 9000 | M22: 9500 | N22: 91000 | O22: 81900 | P22: 9100 | Q22: 0.1111111111
A23: إجمالي المصروفات التشغيلية | B23: =SUM(B16:B22) -> 155000 | C23: 158500 | D23: 158000 | E23: 162500 | F23: 166500 | G23: 164500 | H23: 168000 | I23: 170000 | J23: 169500 | K23: 173500 | L23: 177500 | M23: 180500 | N23: 2004000 | O23: =SUM(O16:O22) -> 1863570 | P23: 140430 | Q23: 0.07535536631
A24: الربح التشغيلي | B24: =B13-B23 -> 2000 | C24: 6500 | D24: 3500 | E24: 15000 | F24: 23500 | G24: 17000 | H24: 27000 | I24: 32200 | J24: 28500 | K24: 41000 | L24: 47500 | M24: 57500 | N24: 301200 | O24: =O13-O23 -> 198640 | P24: 102560 | Q24: 0.5163109142
A26: بنود أخرى
A27: مصروفات التمويل | B27: 7000 | C27: 7000 | D27: 7000 | E27: 7000 | F27: 7000 | G27: 7500 | H27: 7500 | I27: 7500 | J27: 8000 | K27: 8000 | L27: 8500 | M27: 8500 | N27: =SUM(B27:M27) -> 90500 | O27: 85975 | P27: =N27-O27 -> 4525 | Q27: =IFERROR(P27/O27,0) -> 0.05263157895
A28: الزكاة/الضريبة | B28: =MAX(0,(B24-B27)*المدخلات!$B$6) -> 0 | C28: =MAX(0,(C24-C27)*المدخلات!$B$6) -> 0 | D28: =MAX(0,(D24-D27)*المدخلات!$B$6) -> 0 | E28: =MAX(0,(E24-E27)*المدخلات!$B$6) -> 1200 | F28: =MAX(0,(F24-F27)*المدخلات!$B$6) -> 2475 | G28: =MAX(0,(G24-G27)*المدخلات!$B$6) -> 1425 | H28: =MAX(0,(H24-H27)*المدخلات!$B$6) -> 2925 | I28: =MAX(0,(I24-I27)*المدخلات!$B$6) -> 3705 | J28: =MAX(0,(J24-J27)*المدخلات!$B$6) -> 3075 | K28: =MAX(0,(K24-K27)*المدخلات!$B$6) -> 4950 | L28: =MAX(0,(L24-L27)*المدخلات!$B$6) -> 5850 | M28: =MAX(0,(M24-M27)*المدخلات!$B$6) -> 7350 | N28: 32955 | O28: =MAX(0,(O24-O27)*المدخلات!$B$6) -> 16899.75 | P28: 16055.25 | Q28: 0.9500288466
A29: صافي الربح | B29: =B24-B27-B28 -> -5000 | C29: -500 | D29: -3500 | E29: 6800 | F29: 14025 | G29: 8075 | H29: 16575 | I29: 20995 | J29: 17425 | K29: 28050 | L29: 33150 | M29: 41650 | N29: 177745 | O29: =O24-O27-O28 -> 95765.25 | P29: 81979.75 | Q29: 0.8560490366

Sheet مقارنة وانحرافات
A1: مقارنة الأداء مع السنة السابقة وتحليل الانحرافات
A2: البند | B2: السنة الحالية | C2: السنة السابقة | D2: الانحراف | E2: نسبة الانحراف | F2: التقييم | G2: سبب الانحراف | H2: إجراء مقترح
A3: إجمالي الإيرادات | B3: ='قائمة الدخل'!B3 -> 4652000 | C3: ='قائمة الدخل'!C3 -> 4195300 | D3: =B3-C3 -> 456700 | E3: =IFERROR(D3/C3,0) -> 0.1088599147 | F3: =IF(ABS(E3)<المدخلات!$B$8,"مستقر",IF(D3>0,"تحسن","تراجع")) -> تحسن
A4: تكلفة الإيرادات | B4: ='قائمة الدخل'!B4 -> 2346800 | C4: ='قائمة الدخل'!C4 -> 2133090 | D4: 213710 | E4: 0.1001879902 | F4: =IF(ABS(E4)<المدخلات!$B$8,"مستقر",IF(D4<0,"تحسن","تراجع")) -> تراجع
A5: مجمل الربح | B5: ='قائمة الدخل'!B5 -> 2305200 | C5: ='قائمة الدخل'!C5 -> 2062210 | D5: 242990 | E5: 0.1178299009 | F5: =IF(ABS(E5)<المدخلات!$B$8,"مستقر",IF(D5>0,"تحسن","تراجع")) -> تحسن
A6: المصروفات التشغيلية | B6: ='قائمة الدخل'!B8 -> 2004000 | C6: ='قائمة الدخل'!C8 -> 1863570 | D6: 140430 | E6: 0.07535536631 | F6: =IF(ABS(E6)<المدخلات!$B$8,"مستقر",IF(D6<0,"تحسن","تراجع")) -> تراجع
A7: الربح التشغيلي | B7: ='قائمة الدخل'!B10 -> 301200 | C7: ='قائمة الدخل'!C10 -> 198640 | D7: 102560 | E7: 0.5163109142 | F7: =IF(ABS(E7)<المدخلات!$B$8,"مستقر",IF(D7>0,"تحسن","تراجع")) -> تحسن
A8: مصروفات التمويل | B8: ='قائمة الدخل'!B13 -> 90500 | C8: ='قائمة الدخل'!C13 -> 85975 | D8: 4525 | E8: 0.05263157895 | F8: =IF(ABS(E8)<المدخلات!$B$8,"مستقر",IF(D8<0,"تحسن","تراجع")) -> تراجع
A9: صافي الربح | B9: ='قائمة الدخل'!B16 -> 177745 | C9: ='قائمة الدخل'!C16 -> 95765.25 | D9: 81979.75 | E9: 0.8560490366 | F9: =IF(ABS(E9)<المدخلات!$B$8,"مستقر",IF(D9>0,"تحسن","تراجع")) -> تحسن
A10: إجمالي الأصول | B10: ='المركز المالي'!B15 -> 2767745 | C10: ='المركز المالي'!C15 -> 2405000 | D10: 362745 | E10: 0.1508295218 | F10: =IF(ABS(E10)<المدخلات!$B$8,"مستقر",IF(D10>0,"تحسن","تراجع")) -> تحسن
A11: إجمالي الالتزامات | B11: ='المركز المالي'!B24 -> 1320000 | C11: ='المركز المالي'!C24 -> 1135000 | D11: 185000 | E11: 0.1629955947 | F11: =IF(ABS(E11)<المدخلات!$B$8,"مستقر",IF(D11<0,"تحسن","تراجع")) -> تراجع
A12: حقوق الملكية | B12: ='المركز المالي'!B28 -> 1447745 | C12: ='المركز المالي'!C28 -> 1270000 | D12: 177745 | E12: 0.1399566929 | F12: =IF(ABS(E12)<المدخلات!$B$8,"مستقر",IF(D12>0,"تحسن","تراجع")) -> تحسن
A13: التدفقات التشغيلية | B13: ='التدفقات النقدية'!B11 -> 231745 | C13: ='التدفقات النقدية'!C11 -> 163245.25 | D13: 68499.75 | E13: 0.4196125155 | F13: =IF(ABS(E13)<المدخلات!$B$8,"مستقر",IF(D13>0,"تحسن","تراجع")) -> تحسن
A14: رصيد النقدية آخر السنة | B14: ='التدفقات النقدية'!B25 -> 421745 | C14: ='التدفقات النقدية'!C25 -> 358245.25 | D14: 63499.75 | E14: 0.1772521757 | F14: =IF(ABS(E14)<المدخلات!$B$8,"مستقر",IF(D14>0,"تحسن","تراجع")) -> تحسن

Sheet قائمة الدخل
A1: قائمة الدخل السنوية
A2: البند | B2: السنة الحالية | C2: السنة السابقة | D2: الانحراف | E2: نسبة الانحراف | F2: ملاحظات
A3: إجمالي الإيرادات | B3: ='ملخص الإيرادات'!N7 -> 4652000 | C3: ='ملخص الإيرادات'!O7 -> 4195300 | D3: =B3-C3 -> 456700 | E3: =IFERROR(D3/C3,0) -> 0.1088599147
A4: تكلفة الإيرادات | B4: ='ملخص الإيرادات'!N12 -> 2346800 | C4: ='ملخص الإيرادات'!O12 -> 2133090 | D4: 213710 | E4: 0.1001879902
A5: مجمل الربح | B5: =B3-B4 -> 2305200 | C5: 2062210 | D5: 242990 | E5: 0.1178299009
A6: هامش مجمل الربح | B6: =IFERROR(B5/B3,0) -> 0.4955288048 | C6: 0.4915524516 | D6: 0.003976353262 | E6: 0.008089377338
A7: المصروفات التشغيلية
A8: إجمالي المصروفات التشغيلية | B8: ='ملخص الإيرادات'!N23 -> 2004000 | C8: ='ملخص الإيرادات'!O23 -> 1863570 | D8: =B8-C8 -> 140430 | E8: =IFERROR(D8/C8,0) -> 0.07535536631
A9: EBITDA | B9: =B10+'ملخص الإيرادات'!N21 -> 445200 | C9: =C10+'ملخص الإيرادات'!O21 -> 331120 | D9: 114080 | E9: 0.3445276637
A10: الربح التشغيلي EBIT | B10: =B5-B8 -> 301200 | C10: 198640 | D10: 102560 | E10: 0.5163109142
A11: هامش التشغيل | B11: =IFERROR(B10/B3,0) -> 0.06474634566 | C11: 0.04734822301 | D11: 0.01739812265 | E11: 0.3674503823
A12: بنود أخرى
A13: مصروفات التمويل | B13: ='ملخص الإيرادات'!N27 -> 90500 | C13: ='ملخص الإيرادات'!O27 -> 85975 | D13: =B13-C13 -> 4525 | E13: =IFERROR(D13/C13,0) -> 0.05263157895
A14: الربح قبل الزكاة/الضريبة | B14: =B10-B13 -> 210700 | C14: 112665 | D14: 98035 | E14: 0.8701460081
A15: الزكاة/الضريبة | B15: ='ملخص الإيرادات'!N28 -> 32955 | C15: ='ملخص الإيرادات'!O28 -> 16899.75 | D15: 16055.25 | E15: 0.9500288466
A16: صافي الربح | B16: =B14-B15 -> 177745 | C16: 95765.25 | D16: 81979.75 | E16: 0.8560490366
A17: هامش صافي الربح | B17: =IFERROR(B16/B3,0) -> 0.03820829751 | C17: 0.02282679427 | D17: 0.01538150324 | E17: 0.6738354521

Sheet المركز المالي
A1: قائمة المركز المالي
A2: البند | B2: السنة الحالية | C2: السنة السابقة | D2: الانحراف | E2: نسبة الانحراف
A3: الأصول المتداولة
A4: النقدية وما في حكمها | B4: ='التدفقات النقدية'!B25 -> 421745 | C4: 420000 | D4: =B4-C4 -> 1745 | E4: =IFERROR(D4/C4,0) -> 0.004154761905
A5: الحسابات المدينة | B5: 500000 | C5: 430000 | D5: 70000 | E5: 0.1627906977
A6: المخزون | B6: 600000 | C6: 520000 | D6: 80000 | E6: 0.1538461538
A7: مصروفات مدفوعة مقدمًا | B7: 100000 | C7: 85000 | D7: 15000 | E7: 0.1764705882
A8: إجمالي الأصول المتداولة | B8: =SUM(B4:B7) -> 1621745 | C8: 1455000 | D8: 166745 | E8: 0.1146013746
A9: الأصول غير المتداولة
A10: الأصول الثابتة - التكلفة | B10: 1500000 | C10: 1200000 | D10: =B10-C10 -> 300000 | E10: =IFERROR(D10/C10,0) -> 0.25
A11: مجمع الإهلاك (يُدخل بالسالب) | B11: -504000 | C11: -360000 | D11: -144000 | E11: 0.4
A12: صافي الأصول الثابتة | B12: =B10+B11 -> 996000 | C12: 840000 | D12: 156000 | E12: 0.1857142857
A13: أصول أخرى | B13: 150000 | C13: 110000 | D13: 40000 | E13: 0.3636363636
A14: إجمالي الأصول غير المتداولة | B14: =SUM(B12:B13) -> 1146000 | C14: 950000 | D14: 196000 | E14: 0.2063157895
A15: إجمالي الأصول | B15: =B8+B14 -> 2767745 | C15: 2405000 | D15: 362745 | E15: 0.1508295218
A16: الالتزامات المتداولة
A17: الموردون / الحسابات الدائنة | B17: 330000 | C17: 280000 | D17: =B17-C17 -> 50000 | E17: =IFERROR(D17/C17,0) -> 0.1785714286
A18: قروض قصيرة الأجل | B18: 200000 | C18: 150000 | D18: 50000 | E18: 0.3333333333
A19: مصروفات مستحقة | B19: 120000 | C19: 95000 | D19: 25000 | E19: 0.2631578947
A20: إجمالي الالتزامات المتداولة | B20: =SUM(B17:B19) -> 650000 | C20: 525000 | D20: 125000 | E20: 0.2380952381
A21: الالتزامات غير المتداولة
A22: قروض طويلة الأجل | B22: 600000 | C22: 550000 | D22: =B22-C22 -> 50000 | E22: =IFERROR(D22/C22,0) -> 0.09090909091
A23: التزامات طويلة أخرى | B23: 70000 | C23: 60000 | D23: 10000 | E23: 0.1666666667
A24: إجمالي الالتزامات | B24: =B20+SUM(B22:B23) -> 1320000 | C24: 1135000 | D24: 185000 | E24: 0.1629955947
A25: حقوق الملكية
A26: رأس المال | B26: ='تغيرات حقوق الملكية'!B6 -> 1000000 | C26: ='تغيرات حقوق الملكية'!C6 -> 900000 | D26: =B26-C26 -> 100000 | E26: =IFERROR(D26/C26,0) -> 0.1111111111
A27: الأرباح المبقاة بنهاية السنة | B27: ='تغيرات حقوق الملكية'!B10 -> 447745 | C27: ='تغيرات حقوق الملكية'!C10 -> 370000 | D27: 77745 | E27: 0.2101216216
A28: إجمالي حقوق الملكية | B28: =SUM(B26:B27) -> 1447745 | C28: 1270000 | D28: 177745 | E28: 0.1399566929
A29: إجمالي الالتزامات وحقوق الملكية | B29: =B24+B28 -> 2767745 | C29: 2405000 | D29: 362745 | E29: 0.1508295218
A30: فرق الميزانية (يجب أن = 0) | B30: =B15-B29 -> 0 | C30: 0 | D30: 0 | E30: 0

Sheet التدفقات النقدية
A1: قائمة التدفقات النقدية
A2: البند | B2: السنة الحالية | C2: السنة السابقة | D2: ملاحظات
A3: التدفقات من الأنشطة التشغيلية
A4: صافي الربح | B4: ='قائمة الدخل'!B16 -> 177745 | C4: ='قائمة الدخل'!C16 -> 95765.25
A5: الإهلاك والإطفاء | B5: ='ملخص الإيرادات'!N21 -> 144000 | C5: ='ملخص الإيرادات'!O21 -> 132480
A6: الزيادة في الحسابات المدينة | B6: ='المركز المالي'!B5-'المركز المالي'!C5 -> 70000 | C6: 50000
A7: الزيادة في المخزون | B7: ='المركز المالي'!B6-'المركز المالي'!C6 -> 80000 | C7: 60000
A8: الزيادة في المصروفات المدفوعة مقدمًا | B8: ='المركز المالي'!B7-'المركز المالي'!C7 -> 15000 | C8: 10000
A9: الزيادة في الموردين / الحسابات الدائنة | B9: ='المركز المالي'!B17-'المركز المالي'!C17 -> 50000 | C9: 40000
A10: الزيادة في المصروفات المستحقة | B10: ='المركز المالي'!B19-'المركز المالي'!C19 -> 25000 | C10: 15000
A11: صافي التدفقات النقدية من التشغيل | B11: =B4+B5-B6-B7-B8+B9+B10 -> 231745 | C11: 163245.25
A12: التدفقات من الأنشطة الاستثمارية
A13: شراء أصول ثابتة | B13: =-('المركز المالي'!B10-'المركز المالي'!C10) -> -300000 | C13: -200000
A14: تغير الأصول الأخرى | B14: =-('المركز المالي'!B13-'المركز المالي'!C13) -> -40000 | C14: -20000
A15: صافي التدفقات النقدية من الاستثمار | B15: =SUM(B13:B14) -> -340000 | C15: -220000
A16: التدفقات من الأنشطة التمويلية
A17: تغير القروض قصيرة الأجل | B17: ='المركز المالي'!B18-'المركز المالي'!C18 -> 50000 | C17: 30000
A18: تغير القروض طويلة الأجل | B18: ='المركز المالي'!B22-'المركز المالي'!C22 -> 50000 | C18: 40000
A19: تغير الالتزامات طويلة أخرى | B19: ='المركز المالي'!B23-'المركز المالي'!C23 -> 10000 | C19: 5000
A20: إضافات رأس المال | B20: ='تغيرات حقوق الملكية'!B4-'تغيرات حقوق الملكية'!B5 -> 100000 | C20: 50000
A21: توزيعات أرباح / سحوبات | B21: =-'تغيرات حقوق الملكية'!B9 -> -100000 | C21: -60000
A22: صافي التدفقات النقدية من التمويل | B22: =SUM(B17:B21) -> 110000 | C22: 65000
A23: الرصيد النقدي أول السنة | B23: ='المركز المالي'!C4 -> 420000 | C23: 350000
A24: صافي التغير في النقدية | B24: =B11+B15+B22 -> 1745 | C24: 8245.25
A25: الرصيد النقدي آخر السنة | B25: =B23+B24 -> 421745 | C25: 358245.25
A26: رصيد النقدية في قائمة المركز المالي | B26: ='المركز المالي'!B4 -> 421745
A27: فرق التسوية | B27: =B25-B26 -> 0

Sheet تغيرات حقوق الملكية
A1: قائمة التغيرات في حقوق الملكية
A2: البند | B2: السنة الحالية | C2: السنة السابقة | D2: ملاحظات
A3: رأس المال بداية السنة | B3: ='المركز المالي'!C26 -> 900000 | C3: 850000
A4: إضافات رأس المال | B4: 100000 | C4: 50000
A5: تخفيض رأس المال | B5: 0 | C5: 0
A6: رأس المال نهاية السنة | B6: =B3+B4-B5 -> 1000000 | C6: 900000
A7: الأرباح المبقاة بداية السنة | B7: ='المركز المالي'!C27 -> 370000 | C7: 334234.75
A8: صافي ربح السنة | B8: ='قائمة الدخل'!B16 -> 177745 | C8: ='قائمة الدخل'!C16 -> 95765.25
A9: توزيعات أرباح / سحوبات | B9: 100000 | C9: 60000
A10: الأرباح المبقاة نهاية السنة | B10: =B7+B8-B9 -> 447745 | C10: 370000
A11: إجمالي حقوق الملكية نهاية السنة | B11: =B6+B10 -> 1447745 | C11: 1270000

Sheet نسب الربحية
A1: نسب الربحية
A2: النسبة / المؤشر | B2: السنة الحالية | C2: السنة السابقة | D2: الانحراف | E2: نسبة الانحراف | F2: الوحدة | G2: تفسير مختصر
A3: هامش مجمل الربح | B3: =IFERROR('قائمة الدخل'!B5/'قائمة الدخل'!B3,0) -> 0.4955288048 | C3: =IFERROR('قائمة الدخل'!C5/'قائمة الدخل'!C3,0) -> 0.4915524516 | D3: =B3-C3 -> 0.003976353262 | E3: =IFERROR(D3/C3,0) -> 0.008089377338 | F3: % | G3: يقيس قدرة الإيرادات على تغطية تكلفة الإيرادات.
A4: هامش التشغيل | B4: =IFERROR('قائمة الدخل'!B10/'قائمة الدخل'!B3,0) -> 0.06474634566 | C4: =IFERROR('قائمة الدخل'!C10/'قائمة الدخل'!C3,0) -> 0.04734822301 | D4: 0.01739812265 | E4: 0.3674503823 | F4: % | G4: يوضح ربحية النشاط الأساسي قبل التمويل والضريبة.
A5: هامش صافي الربح | B5: =IFERROR('قائمة الدخل'!B16/'قائمة الدخل'!B3,0) -> 0.03820829751 | C5: =IFERROR('قائمة الدخل'!C16/'قائمة الدخل'!C3,0) -> 0.02282679427 | D5: 0.01538150324 | E5: 0.6738354521 | F5: % | G5: يقيس ما يتبقى من كل وحدة مبيعات كربح صافٍ.
A6: العائد على الأصول ROA | B6: =IFERROR('قائمة الدخل'!B16/AVERAGE('المركز المالي'!B15,'المركز المالي'!C15),0) -> 0.06872366606 | C6: =IFERROR('قائمة الدخل'!C16/'المركز المالي'!C15,0) -> 0.03981923077 | D6: 0.02890443529 | E6: 0.7258913528 | F6: % | G6: يوضح كفاءة استخدام الأصول في تحقيق الأرباح.
A7: العائد على حقوق الملكية ROE | B7: =IFERROR('قائمة الدخل'!B16/AVERAGE('المركز المالي'!B28,'المركز المالي'!C28),0) -> 0.1308032946 | C7: =IFERROR('قائمة الدخل'!C16/'المركز المالي'!C28,0) -> 0.07540570866 | D7: 0.05539758598 | E7: 0.7346603721 | F7: % | G7: يقيس العائد المتحقق للملاك.
A8: هامش EBITDA | B8: =IFERROR('قائمة الدخل'!B9/'قائمة الدخل'!B3,0) -> 0.09570077386 | C8: =IFERROR('قائمة الدخل'!C9/'قائمة الدخل'!C3,0) -> 0.07892641766 | D8: 0.0167743562 | E8: 0.2125315794 | F8: % | G8: يعرض ربحية التشغيل قبل الإهلاك والتمويل والضريبة.

Sheet نسب السيولة
A1: نسب السيولة
A2: النسبة / المؤشر | B2: السنة الحالية | C2: السنة السابقة | D2: الانحراف | E2: نسبة الانحراف | F2: الوحدة | G2: تفسير مختصر
A3: نسبة التداول | B3: =IFERROR('المركز المالي'!B8/'المركز المالي'!B20,0) -> 2.494992308 | C3: =IFERROR('المركز المالي'!C8/'المركز المالي'!C20,0) -> 2.771428571 | D3: =B3-C3 -> -0.2764362637 | E3: =IFERROR(D3/C3,0) -> -0.09974504362 | F3: مرة | G3: كلما ارتفعت زادت قدرة الشركة على تغطية الالتزامات قصيرة الأجل.
A4: النسبة السريعة | B4: =IFERROR(('المركز المالي'!B4+'المركز المالي'!B5)/'المركز المالي'!B20,0) -> 1.418069231 | C4: =IFERROR(('المركز المالي'!C4+'المركز المالي'!C5)/'المركز المالي'!C20,0) -> 1.619047619 | D4: -0.2009783883 | E4: -0.1241337104 | F4: مرة | G4: تقيس السيولة دون الاعتماد على بيع المخزون.
A5: نسبة النقدية | B5: =IFERROR('المركز المالي'!B4/'المركز المالي'!B20,0) -> 0.6488384615 | C5: =IFERROR('المركز المالي'!C4/'المركز المالي'!C20,0) -> 0.8 | D5: -0.1511615385 | E5: -0.1889519231 | F5: مرة | G5: تقيس قدرة النقدية المباشرة على تغطية الالتزامات المتداولة.
A6: رأس المال العامل | B6: ='المركز المالي'!B8-'المركز المالي'!B20 -> 971745 | C6: ='المركز المالي'!C8-'المركز المالي'!C20 -> 930000 | D6: 41745 | E6: 0.04488709677 | F6: مبلغ | G6: مؤشر على هامش الأمان التشغيلي قصير الأجل.
A7: نسبة التدفق التشغيلي | B7: =IFERROR('التدفقات النقدية'!B11/'المركز المالي'!B20,0) -> 0.3565307692 | C7: =IFERROR('التدفقات النقدية'!C11/'المركز المالي'!C20,0) -> 0.3109433333 | D7: 0.0455874359 | E7: 0.1466101087 | F7: مرة | G7: تقيس تغطية الالتزامات المتداولة من النقد التشغيلي.

Sheet نسب المديونية
A1: نسب المديونية
A2: النسبة / المؤشر | B2: السنة الحالية | C2: السنة السابقة | D2: الانحراف | E2: نسبة الانحراف | F2: الوحدة | G2: تفسير مختصر
A3: نسبة الالتزامات إلى الأصول | B3: =IFERROR('المركز المالي'!B24/'المركز المالي'!B15,0) -> 0.4769225489 | C3: =IFERROR('المركز المالي'!C24/'المركز المالي'!C15,0) -> 0.4719334719 | D3: =B3-C3 -> 0.004989076929 | E3: =IFERROR(D3/C3,0) -> 0.01057156829 | F3: % | G3: تعرض نسبة تمويل الأصول بالالتزامات.
A4: نسبة الدين إلى حقوق الملكية | B4: =IFERROR('المركز المالي'!B24/'المركز المالي'!B28,0) -> 0.9117627759 | C4: =IFERROR('المركز المالي'!C24/'المركز المالي'!C28,0) -> 0.8937007874 | D4: 0.0180619885 | E4: 0.02021033075 | F4: مرة | G4: كلما ارتفعت زاد الاعتماد على التمويل بالديون.
A5: نسبة حقوق الملكية إلى الأصول | B5: =IFERROR('المركز المالي'!B28/'المركز المالي'!B15,0) -> 0.5230774511 | C5: =IFERROR('المركز المالي'!C28/'المركز المالي'!C15,0) -> 0.5280665281 | D5: -0.004989076929 | E5: -0.009447818908 | F5: % | G5: تعكس نسبة الأصول الممولة من حقوق الملكية.
A6: تغطية الفوائد | B6: =IFERROR('قائمة الدخل'!B10/'قائمة الدخل'!B13,0) -> 3.328176796 | C6: =IFERROR('قائمة الدخل'!C10/'قائمة الدخل'!C13,0) -> 2.310439081 | D6: 1.017737714 | E6: 0.4404953685 | F6: مرة | G6: تقيس قدرة الربح التشغيلي على تغطية مصروفات التمويل.
A7: الالتزامات المتداولة إلى إجمالي الالتزامات | B7: =IFERROR('المركز المالي'!B20/'المركز المالي'!B24,0) -> 0.4924242424 | C7: =IFERROR('المركز المالي'!C20/'المركز المالي'!C24,0) -> 0.4625550661 | D7: 0.02986917634 | E7: 0.06457431457 | F7: % | G7: يوضح وزن الالتزامات القصيرة داخل هيكل الالتزامات.

Sheet الكفاءة التشغيلية
A1: مؤشرات الكفاءة التشغيلية
A2: النسبة / المؤشر | B2: السنة الحالية | C2: السنة السابقة | D2: الانحراف | E2: نسبة الانحراف | F2: الوحدة | G2: تفسير مختصر
A3: معدل دوران المخزون | B3: =IFERROR('قائمة الدخل'!B4/AVERAGE('المركز المالي'!B6,'المركز المالي'!C6),0) -> 4.190714286 | C3: =IFERROR('قائمة الدخل'!C4/'المركز المالي'!C6,0) -> 4.102096154 | D3: =B3-C3 -> 0.08861813187 | E3: =IFERROR(D3/C3,0) -> 0.02160313375 | F3: مرة | G3: يقيس سرعة تحويل المخزون إلى مبيعات.
A4: أيام المخزون DIO | B4: =IFERROR(المدخلات!$B$7/B3,0) -> 87.09732402 | C4: =IFERROR(المدخلات!$B$7/C3,0) -> 88.97889916 | D4: -1.88157514 | E4: -0.02114630725 | F4: يوم | G4: عدد الأيام التقريبي لبقاء المخزون قبل بيعه.
A5: معدل دوران العملاء | B5: =IFERROR('قائمة الدخل'!B3/AVERAGE('المركز المالي'!B5,'المركز المالي'!C5),0) -> 10.00430108 | C5: =IFERROR('قائمة الدخل'!C3/'المركز المالي'!C5,0) -> 9.756511628 | D5: 0.2477894474 | E5: 0.02539734044 | F5: مرة | G5: يقيس سرعة تحصيل المبيعات الآجلة.
A6: أيام التحصيل DSO | B6: =IFERROR(المدخلات!$B$7/B5,0) -> 36.48430782 | C6: =IFERROR(المدخلات!$B$7/C5,0) -> 37.41091221 | D6: -0.9266043867 | E6: -0.02476829171 | F6: يوم | G6: متوسط عدد الأيام اللازمة للتحصيل من العملاء.
A7: معدل دوران الموردين | B7: =IFERROR('قائمة الدخل'!B4/AVERAGE('المركز المالي'!B17,'المركز المالي'!C17),0) -> 7.69442623 | C7: =IFERROR('قائمة الدخل'!C4/'المركز المالي'!C17,0) -> 7.618178571 | D7: 0.07624765808 | E7: 0.01000864673 | F7: مرة | G7: يقيس سرعة سداد الالتزامات للموردين.
A8: أيام السداد DPO | B8: =IFERROR(المدخلات!$B$7/B7,0) -> 47.4369354 | C8: =IFERROR(المدخلات!$B$7/C7,0) -> 47.91171493 | D8: -0.4747795286 | E8: -0.009909466386 | F8: يوم | G8: متوسط عدد الأيام قبل السداد للموردين.
A9: دورة التحويل النقدي CCC | B9: =B4+B6-B8 -> 76.14469644 | C9: 78.47809644 | D9: -2.333399998 | E9: -0.02973313707 | F9: يوم | G9: عدد الأيام بين دفع تكلفة المخزون وتحصيل النقد من العملاء.
A10: معدل دوران الأصول | B10: =IFERROR('قائمة الدخل'!B3/AVERAGE('المركز المالي'!B15,'المركز المالي'!C15),0) -> 1.798658159 | C10: =IFERROR('قائمة الدخل'!C3/'المركز المالي'!C15,0) -> 1.744407484 | D10: 0.05425067485 | E10: 0.03109977189 | F10: مرة | G10: يقيس كفاءة الأصول في توليد الإيرادات.

Sheet قوائم مساعدة
A1: قوائم مساعدة للتحليل
A2: أسباب الانحراف | B2: إجراءات مقترحة
A3: زيادة حجم المبيعات | B3: مراجعة الأسعار
A4: تغير الأسعار | B4: تحسين التحصيل
A5: ارتفاع تكلفة الشراء | B5: خفض المصروفات غير الضرورية
A6: مصروفات غير متكررة | B6: إعادة التفاوض مع الموردين
A7: تأخر التحصيل | B7: تعزيز الحملات ذات العائد الأعلى
A8: تحسن شروط الموردين | B8: مراجعة شروط الائتمان
A9: توسع تشغيلي | B9: زيادة كفاءة المخزون
A10: تغير في سياسة التسعير | B10: إعداد خطة تصحيحية
A11: أثر موسمي | B11: مراقبة شهرية
A12: أخرى | B12: لا يوجد إجراء
